{"text_format":"1","workbook":"xlsx","n_sheets":1,"sheets":["услуги"],"not_rendered":{"charts":0,"images":0,"macros":1,"external_links":0,"defined_names":7,"comments":0,"pivot_tables":0},"unopened":[],"bounds":{"document_bytes":16777216,"sheet_cells":100000,"rows_first":2000,"rows_last":500,"rows_between":2000,"halvings":0,"cell_chars":16384,"cell_head_chars":4096},"cells_cut":0,"cells_raw":0,"read":"whole","date_system":"1900"}

{"sheet":"услуги","index":0,"n_rows":11,"n_cols":97,"rows_kept":11,"cut":false,"hidden":false,"merged":[[3,2,4,2],[2,7,4,7],[2,6,4,6],[2,27,4,27],[2,28,4,28],[2,26,4,26],[2,12,4,12],[2,13,4,13],[2,14,4,14],[2,15,3,16],[3,17,3,18],[0,0,0,10],[3,3,4,3],[3,4,4,4],[2,17,2,24],[2,25,4,25],[2,0,4,0],[3,19,3,20],[3,21,3,22],[2,2,2,4],[2,5,4,5],[2,1,4,1],[2,8,4,8],[2,9,4,9],[3,23,3,24],[2,10,4,10],[2,11,4,11],[2,29,4,29],[3,42,4,42],[3,43,4,43],[3,46,4,46],[3,47,4,47],[2,34,2,43],[2,44,4,44],[2,45,4,45],[2,46,2,54],[3,35,4,35],[3,36,3,37],[3,38,4,38],[3,39,3,40],[3,41,4,41],[3,52,4,52],[3,54,4,54],[2,81,4,81],[2,69,4,69],[2,70,4,70],[2,73,4,73],[2,74,4,74],[2,75,4,75],[2,76,3,77],[2,78,4,78],[2,79,4,79],[2,80,4,80],[2,30,2,33],[2,56,4,56],[2,57,4,57],[3,48,4,48],[3,50,4,50],[3,51,4,51],[2,55,4,55],[3,30,4,30],[3,31,4,31],[3,32,4,32],[3,33,4,33],[3,34,4,34],[3,49,4,49],[3,53,4,53],[2,66,4,66],[2,67,4,67],[2,68,4,68],[2,58,4,58],[2,72,4,72],[2,71,4,71],[2,63,4,63],[2,64,4,64],[2,65,4,65],[2,60,4,60],[2,61,4,61],[2,62,4,62],[2,59,4,59],[2,94,4,94],[2,95,4,95],[2,96,4,96],[2,91,4,91],[2,92,4,92],[2,93,4,93],[2,89,4,89],[2,90,4,90],[2,82,4,82],[2,83,4,83],[2,84,4,84],[2,85,4,85],[2,86,4,86],[2,87,4,87],[2,88,4,88]]}
["Приложение 1_План закупки ООТиСП СЭС ПАО \"Россети Московский регион\""]
[]
["Код вида деятель-ности","Номер закупки","Подразделение/предприятие-потребитель продукции",null,null,"Вид закупаемой продукции","Номер лота","Наименование лота","Код по ОКВЭД 2","Код по ОКПД 2","Закупка только среди МСП (да/нет/искл)","Признак закупки инновационной и высокотехнологичной продукции (Да/Нет)","Источник финансирования","Наименование статьи сметы затрат","Документ, на основании которого определена планируемая цена закупки","Планируемая начальная (предельная) цена лота по извещению/уведомлению, тыс. руб. ",null,"Объёмы затрат долгосрочного договора по годам, тыс. рублей",null,null,null,null,null,null,null,"Планируемый способ закупки","Организатор закупки","Вид закупки (электронная/неэлектронная)","Планируемая дата размещения извещения о начале закупочной процедуры/заключения договора у ЕП (ЗПП)\n(чч.мм.гггг)","Планируемая дата подведения итогов по закупочной процедуре/заключения договора у ЕП (ЗПП)\n(чч.мм.гггг)","Сведения о закупке у ЕП",null,null,null,"Условия договора",null,null,null,null,null,null,null,null,null,"Год под обеспечение потребности которого планируется данная закупка","Дополнительная информация о закупке\nАванс (да/нет), %","Данные из утвержденной инвестиционной программы",null,null,null,null,null,null,null,null,"доп услуги, \nТМЦ, \nрамки","Объем финансового обеспечения закупки за счет субсидии, предоставляемой в целях реализации национальных и федеральных проектов, а также комплексного плана модернизации и расширения магистральной инфраструктуры (тыс.руб. с НДС)","Код целевой статьи расходов, код вида расходов","Примечание","Информация поступила от","Дата поступления ТЗ","На ЦКК","Дата протокола ЦКК","Статус лота:\nПроведён-1\nВ работе-2, с\nНет ТЗ - 0\nАннулирован - а","план/\nвнеплан","Дата объявления","Дата вскрытия","№ ЭТП","Способ закупки факт\n(замечания после ЦКК)","Наименования участников, подавших заявки/предложения (оферты)","Цены  заявок/предложений   (оферт),  тыс. руб. (без НДС)\nС НДС","Отклонены от переторжки","Допущены к переторжке","Цены участников после переторжки","Количество переторжек","Наименование победителя ","Цена победителя , тыс. руб.",null,"Эк.Эфф\nтыс. руб. без НДС","Снижение \n%","НДС\n%","Номер итогового протокола","Дата подведения итогов конкурентной процедуры (дата протокола)","номер договора","дата заключения договора"," Стоимость по договору, тыс. руб. (с НДС)","сумма оплаты в 2022 году, тыс руб. (без НДС)","сумма оплаты в 2022 году, тыс руб. (с НДС)","сумма оплаты в 2023-2025 гг, тыс руб. (без НДС)","сумма оплаты в 2023-2025 гг, тыс руб. (с НДС)","ИНН","КПП","квартал","Принадлежность победителя закупочной процедуры к субьекту малого предпринимательства (нет, да - 1ип, 1ми, 1м, 1с)","Номер извещения в ЕИС","Лот относится к категории \"Цифровая трансформация 2030\"\nда/нет","Лот относится к категории \"Программа Цифровая трансформация\"\nда/нет"]
[null,null,"Юридическое лицо","Филиал/подразделение","Функциональный блок ИА",null,null,null,null,null,null,null,null,null,null,null,null,"2024г., тыс.руб",null,"2024г., тыс.руб",null,"2025г., тыс.руб",null,"2026г. И ДАЛЕЕ, тыс.руб",null,null,null,null,null,null,"Основание для проведения закупки у ЕП (пункт ЕСЗ ПАО \"Россети\")","Наименование контрагента","ИНН","КПП","Предмет договора","Минимально необходимые требования, предъявляемые к закупаемым товарам (работам, услугам)","Единица измерения",null,"Сведения о количестве (объеме) - количество единиц измерения","Регион поставки товаров (выполнения работ, оказания услуг)",null,"Плановая дата заключения договора (чч.мм.гггг)","Планируемая дата начала поставки товаров, выполнения работ, услуг (чч.мм.гггг)","Планируемая дата окончания поставки товаров, выполнения работ, услуг (чч.мм.гггг)",null,null,"статус ИПР","наименование инвестиционного проекта (группы инвестиционных проектов)","идентификатор инвестиционного проекта\n(Код объекта в инвестиционной программе)","Проектно-сметная документация \nутверждена/не утверждена","год начала  реализации инвестиционного проекта\n(ГГГГ)","год окончания реализации инвестиционного проекта\n(ГГГГ)","оценка полной стоимости инвестиционного проекта в прогнозных ценах соответствующих лет. с учетом капитализации процентов. \nтыс. руб. (с НДС)","оценка полной стоимости инвестиционного проекта в прогнозных ценах соответствующих лет. без учета  капитализации процентов. \nтыс. руб. (с НДС)","остаток финансирования капитальных вложений в прогнозных ценах (на момент начала года плана закупки). тыс. руб. (с НДС)\nна 01.01.2021"]
[null,null,null,null,null,null,null,null,null,null,null,null,null,null,null,"(без учета НДС)"," (с учетом НДС)","(без учета НДС)"," (с учетом НДС)","(без учета НДС)"," (с учетом НДС)","(без учета НДС)"," (с учетом НДС)","(без учета НДС)"," (с учетом НДС)",null,null,null,null,null,null,null,null,null,null,null,"Код по ОКЕИ","наименование",null,"Код по ОКАТО","наименование",null,null,null,null,null,null,null,null,null,null,null,null,null,null,null,null,null,null,null,null,null,null,null,null,null,null,null,null,null,null,null,null,null,null,null,"без НДС","с НДС"]
[1,2,3,{"$f":"C6+1","v":4},5,6,7,8,9,10,11,12,13,14,15,16,17,18,19,20,21,22,23,24,25,26,27,28,29,30,31,32,33,34,35,36,37,38,39,40,41,42,43,44,45,46,47,48,49,50,51,52,53,53.1,54,55,{"$f":"BD6+1","v":56},57,58,59,{"$f":"BH6+1","v":60},61,{"$f":"BJ6+1","v":62},{"$f":"BK6+1","v":63},{"$f":"BL6+1","v":64},{"$f":"BM6+1","v":65},{"$f":"BN6+1","v":66},{"$f":"BO6+1","v":67},{"$f":"BP6+1","v":68},{"$f":"BQ6+1","v":69},{"$f":"BR6+1","v":70},{"$f":"BS6+1","v":71},{"$f":"BT6+1","v":72},{"$f":"BU6+1","v":73},{"$f":"BV6+1","v":74},{"$f":"BW6+1","v":75},{"$f":"BX6+1","v":76},{"$f":"BY6+1","v":77},{"$f":"BZ6+1","v":78},{"$f":"CA6+1","v":79},{"$f":"CB6+1","v":80},{"$f":"CC6+1","v":81},{"$f":"CD6+1","v":82},{"$f":"CE6+1","v":83},{"$f":"CF6+1","v":84},{"$f":"CG6+1","v":85},{"$f":"CH6+1","v":86},{"$f":"CI6+1","v":87},{"$f":"CJ6+1","v":88},{"$f":"CK6+1","v":89},{"$f":"CL6+1","v":90},{"$f":"CM6+1","v":91},{"$f":"CN6+1","v":92},{"$f":"CO6+1","v":93},{"$f":"CP6+1","v":94},{"$f":"CQ6+1","v":95},{"$f":"CR6+1","v":96}]
[1,null,"ПАО \"Россети Московский регион\"","Отдел оплаты труда и социальных программ/Блок Управление персоналом/Северные электрические сети/ПАО \"Россети Московский регион\"","Управление персоналом","Услуги","081-0026539 000 02","Услуги по обслуживанию памятника создателям электрозаграждений мемориального комплекса «Рубеж обороны Москвы», расположенного по адресу: Московская область, Красногорский район, д. Нефедьево на 2026г.","S","93.30","нет","нет","Прибыль","Культмассовые мероприятия и расходы на содержание соц.сферы","ТЗ, Приложение № 1 – Перечень единичных видов работ по обслуживанию памятника, Приложение № 2 – Перечень единичных стоимостей видов работ на оказание услуг по обслуживанию памятника, Приложение № 3 – Перечень объектов",401.4,489.7,401.4,489.7,null,null,null,null,null,null,"Сравнение цен - Комбинированный метод ","СЭС","электронная","2026-05-28","2026-06-02",null,null,null,null,"Услуги по обслуживанию памятника создателям электрозаграждений мемориального комплекса «Рубеж обороны Москвы», расположенного по адресу: Московская область, Красногорский район, д. Нефедьево на 2026г.","В соответствии с ТЗ и приложением №1,2,3","-","-","услуга","г. Москва","г. Москва","2026-06-15","2026-06-15","2026-12-31","2026","НЕТ","нет","нет","нет","нет","нет","нет","нет","нет","нет","услуги",null,null,null,"Ларина Нина Васильевна"]
[1,"081-0026886","ПАО \"Россети Московский регион\"","ХРЭС Группа ТП/ХРЭС Сектор по льготным договорам ТП/Химкинский район электрических сетей/РЭСы/Северные электрические сети/ПАО \"Россети Московский регион\"","Подразделение по капитальному строительству","СМР;\nПНР;\nПИР","081-0026886 00","Выполнение ПИР,СМР,ПНР по титулу: Строительство ВЛИ-0,38 кВ от ВЛИ-0,38 кВ от ТП 6/0,4 кВ №321, ПС №35\"Октябрьская\", в т.ч. ПИР, МО, Химкинский р-он, г. Химки, мкр. Фирсановка, ул. Громова, д. 23А","71.1;\n42.22","71.12.13.000","ДА","НЕТ"," RAB льгота","НЕТ","ориентировочный расчет",384.87912999999998,469.55254000000002,384.87912999999998,469.55254000000002,null,null,null,null,null,null,"Сравнение цен","Северные электрические сети","Электронная","01.06.2026","07.06.2026",null,null,null,null,"Выполнение ПИР,СМР,ПНР по титулу: Строительство ВЛИ-0,38 кВ от ВЛИ-0,38 кВ от ТП 6/0,4 кВ №321, ПС №35\"Октябрьская\", в т.ч. ПИР, МО, Химкинский р-он, г. Химки, мкр. Фирсановка, ул. Громова, д. 23А","согласно ТЗ",796,"Штука",1,"46471000000","Сельские населенные пункты, административно подчиненные г Солнечногорску/","18.06.2026","18.06.2026","10.09.2026",2026,0,"Приказ 1813 от 26.05.2026","Строительство ВЛИ-0,38 кВ от ВЛИ-0,38 кВ от ТП 6/0,4 кВ №321, ПС №35\"Октябрьская\", в т.ч. ПИР, МО, Химкинский р-он, г. Химки, мкр. Фирсановка, ул. Громова, д. 23А","I-361193","Не утверждена",2026,2031,509.34541000000002,0,0,"Тех.присоединение, Потребители до 15 кВт включительно, льготный тариф",null,null,null,"Кустова Алёна Игоревна","27.05.2026",null,null,null,"внеплан ",null,null,null,null,null,null,null,null,null,null,null,0,0,0,0,0,null,null,null,null,null,null,null,null,null,null,null,0,"НЕТ",null,"НЕТ","НЕТ"]
[3,"081-0025669","ПАО \"Россети Московский регион\"","Северные электрические сети / СИЗП","Блок главного инженера","Услуги",8125669,"Оказание услуг по сервисному обслуживанию оборудования электротехнической лаборатории АНГСТРЕМ-3 филиала ПАО «Россети Московский регион» – Северные электрические сети в 2026г","27.90","26.51","да","Нет","Себестоимость","Услуги производственного характера","Приказ №1317 от 21.12.2023 «Об утверждении Инструкции по прохождению ценового контроля, формированию и согласованию начальной (максимальной) цены лота по операционной деятельности Общества в новой редакции»",409.50799999999998,499.6,null,null,null,null,null,null,null,null,"Сравнение цен","СЭС","Электронная","2026-02-16","2026-02-22",null,null,null,null,"Оказание услуг по сервисному обслуживанию оборудования электротехнической лаборатории АНГСТРЕМ-3 филиала ПАО «Россети Московский регион» – Северные электрические сети в 2026г","В соотвествии с ТЗ",796,"Штука",1,46200000000,"районы Московской области","2026-03-05","2026-03-05","2026-12-31",2026,"нет",null,null,null,null,null,null,null,null,null,null,null,null,null,"Столяровой С.М.","нет","нет"]
[3,"081-0025788","ПАО \"Россети Московский регион\"","Северные электрические сети / СИЗП","Блок главного инженера","Услуги",8125788,"Оказание услуг по сервисному обслуживанию оборудования универсальной передвижной электротехнической лаборатории производства ЗАО «ОбнинскЭнергоТех» филиала ПАО «Россети Московский регион» – Северные электрические сети в 2026г","27.90","26.51","да","Нет","Себестоимость","Услуги производственного характера","Приказ №1317 от 21.12.2023 «Об утверждении Инструкции по прохождению ценового контроля, формированию и согласованию начальной (максимальной) цены лота по операционной деятельности Общества в новой редакции»",408.19600000000003,498,null,null,null,null,null,null,null,null,"Сравнение цен","СЭС","Электронная","2026-02-16","2026-02-22",null,null,null,null,"Оказание услуг по сервисному обслуживанию оборудования универсальной передвижной электротехнической лаборатории производства ЗАО «ОбнинскЭнергоТех» филиала ПАО «Россети Московский регион» – Северные электрические сети в 2026г","В соотвествии с ТЗ",796,"Штука",1,46200000000,"районы Московской области","2026-03-05","2026-03-05","2026-12-31",2026,"нет",null,null,null,null,null,null,null,null,null,null,null,null,null,"Столяровой С.М.","нет","нет"]
[3,"081-0025818","ПАО \"Россети Московский регион\"","Северные электрические сети / СИЗП","Блок главного инженера","Услуги",8125818,"Оказание услуг по сервисному обслуживанию передвижной высоковольтной лаборатории типа «СВТ» филиала ПАО «Россети Московский регион» – Северные электрические сети в 2026г","27.90","26.51","да","Нет","Себестоимость","Услуги производственного характера","Приказ №1317 от 21.12.2023 «Об утверждении Инструкции по прохождению ценового контроля, формированию и согласованию начальной (максимальной) цены лота по операционной деятельности Общества в новой редакции»",408.05700000000002,497.82900000000001,null,null,null,null,null,null,null,null,"Сравнение цен","СЭС","Электронная","2026-05-14","2026-05-20",null,null,null,null,"Оказание услуг по сервисному обслуживанию передвижной высоковольтной лаборатории типа «СВТ» филиала ПАО «Россети Московский регион» – Северные электрические сети в 2026г","В соотвествии с ТЗ",796,"Штука",1,46200000000,"районы Московской области","2026-05-31","2026-05-31","2026-12-31",2026,"нет",null,null,null,null,null,null,null,null,null,null,null,null,null,"Столяровой С.М.","нет","нет"]